bitfinex-derivatives/quotes_BTCF0:USTF0_20241019
["timestamp","ask_amount","ask_price","bid_price","bid_amount"]
[1729379539836,0.433911,68392.0,68388.0,0.065515]
[1729379540030,0.04052113,68391.0,68388.0,0.065515]
[1729379540226,0.04052113,68390.0,68388.0,0.065515]
[1729379540426,0.04052113,68389.0,68388.0,0.065515]
[1729379540734,0.04052113,68391.0,68388.0,0.065515]
[1729379540932,0.04052113,68390.0,68388.0,0.065515]
[1729379541124,0.04052113,68389.0,68388.0,0.065515]
[1729379543823,0.433911,68392.0,68388.0,0.065515]
[1729379544338,0.433911,68392.0,68391.0,0.0002]
[1729379545231,0.47441609,68392.0,68391.0,0.0002]
[1729379548237,0.52151377,68392.0,68391.0,0.0002]
[1729379550639,0.47441609,68392.0,68391.0,0.0002]
[1729379550837,0.52151439,68392.0,68391.0,0.0002]
[1729379551044,0.073119,68385.0,68381.0,0.073123]
[1729379551347,0.073122,68382.0,68379.0,0.02698821]
[1729379551543,0.04050509,68381.0,68378.0,0.073326]
[1729379551745,0.04050509,68380.0,68378.0,0.073326]
[1729379552036,0.04050509,68379.0,68378.0,0.073326]
[1729379553638,0.0628,68384.0,68378.0,0.0002]
[1729379553837,0.04039254,68383.0,68381.0,0.073122]
[1729379554033,0.04039254,68382.0,68381.0,0.073122]
[1729379559048,0.0309,68384.0,68382.0,0.073121]
[1729379559245,0.0309,68384.0,68383.0,0.0002]
[1729379559449,0.0309,68384.0,68383.0,0.073321]
[1729379561241,0.0309,68384.0,68383.0,0.065321]
[1729379566250,0.07120421,68384.0,68383.0,0.065321]
[1729379569456,0.07128937,68384.0,68383.0,0.065321]
[1729379569859,0.04038937,68384.0,68383.0,0.065321]
[1729379570360,0.04043284,68384.0,68383.0,0.065321]
[1729379573951,0.0002,68385.0,68384.0,0.07312]
[1729379574359,0.0002,68385.0,68384.0,0.07332]
[1729379576659,0.0002,68385.0,68384.0,0.06532]
[1729379577160,0.02615864,68385.0,68384.0,0.06532]
[1729379584754,0.0002,68385.0,68384.0,0.06532]
[1729379589064,0.04066143,68385.0,68384.0,0.06532]
[1729379589867,0.0002,68385.0,68384.0,0.06532]
[1729379591971,0.0002,68385.0,68384.0,0.05732]
[1729379592363,0.04070586,68385.0,68384.0,0.05732]
[1729379592966,0.04067358,68385.0,68384.0,0.05732]
[1729379595972,0.0002,68385.0,68384.0,0.05732]
[1729379596872,0.0002,68385.0,68384.0,0.32041555]
[1729379597268,0.0002,68385.0,68384.0,0.32037713]
[1729379597970,0.0002,68385.0,68384.0,0.27656424]
[1729379598273,0.0002,68385.0,68384.0,0.32037404]
[1729379599274,0.0002,68385.0,68384.0,0.27656424]
[1729379604675,0.04066706,68385.0,68384.0,0.05732]
[1729379605571,0.0002,68385.0,68384.0,0.05732]
[1729379605966,0.04070147,68385.0,68384.0,0.05732]
[1729379607273,0.04068354,68385.0,68384.0,0.05732]
[1729379607476,0.04068354,68385.0,68384.0,0.05132]
[1729379611179,0.0002,68385.0,68384.0,0.05132]
[1729379611369,0.087618,68385.0,68384.0,0.05132]
[1729379611575,0.087618,68385.0,68384.0,0.0002]
[1729379612074,0.16024573,68385.0,68384.0,0.0002]
[1729379613278,0.18715519,68385.0,68384.0,0.0002]
[1729379614396,0.16024573,68385.0,68384.0,0.0002]
[1729379614889,0.52104573,68385.0,68384.0,0.0002]
[1729379616682,0.434119,68385.0,68384.0,0.0002]
[1729379616884,0.52090321,68385.0,68384.0,0.0002]
[1729379617884,0.16010321,68385.0,68384.0,0.0002]
[1729379618083,0.52090321,68385.0,68384.0,0.0002]
[1729379619181,0.47427741,68385.0,68384.0,0.0002]
[1729379620186,0.434119,68385.0,68384.0,0.0002]
[1729379620974,0.073319,68385.0,68384.0,0.0002]
[1729379622178,0.0002,68385.0,68384.0,0.0002]
[1729379622784,0.0002,68385.0,68383.0,0.071321]
[1729379625494,0.0002,68385.0,68378.0,0.02643268]
[1729379625694,0.0004,68385.0,68384.0,0.07312]
[1729379626191,0.08743378,68385.0,68384.0,0.07312]
[1729379627282,0.0406739,68385.0,68384.0,0.07312]
[1729379630601,0.08742091,68385.0,68384.0,0.07312]
[1729379630795,0.0406739,68385.0,68384.0,0.07312]
[1729379631496,0.04069616,68385.0,68384.0,0.07312]
[1729379632294,0.08747765,68385.0,68384.0,0.07312]
[1729379634200,0.04069616,68385.0,68384.0,0.07312]
[1729379636090,0.04071976,68385.0,68384.0,0.07312]
[1729379638299,0.04071976,68385.0,68384.0,0.06512]
[1729379640602,0.04073202,68385.0,68384.0,0.06512]
[1729379641400,0.08756678,68385.0,68384.0,0.06512]
[1729379641801,0.44836678,68385.0,68384.0,0.06512]
[1729379642595,0.08756678,68385.0,68384.0,0.06512]
[1729379642795,0.44836678,68385.0,68384.0,0.06512]
[1729379643709,0.08756678,68385.0,68384.0,0.06512]
[1729379643901,0.44836678,68385.0,68384.0,0.06512]
[1729379644504,0.44830056,68385.0,68384.0,0.06512]
[1729379644803,0.0407048,68385.0,68384.0,0.06512]
[1729379645007,0.3612,68385.0,68384.0,0.06512]
[1729379645203,0.44830067,68385.0,68384.0,0.06512]
[1729379645408,0.08750067,68385.0,68384.0,0.06512]
[1729379645610,0.44830067,68385.0,68384.0,0.06512]
[1729379646312,0.08750067,68385.0,68384.0,0.06512]
[1729379646605,0.44830067,68385.0,68384.0,0.06512]
[1729379649105,0.4015048,68385.0,68384.0,0.06512]
[1729379649313,0.0407048,68385.0,68384.0,0.06512]
[1729379649613,0.4015048,68385.0,68384.0,0.06512]
[1729379651009,0.0407048,68385.0,68384.0,0.06512]
[1729379651211,0.4015048,68385.0,68384.0,0.06512]
[1729379651815,0.0407048,68385.0,68384.0,0.06512]
[1729379653510,0.0407048,68385.0,68384.0,0.05812]
[1729379654006,0.04074715,68385.0,68384.0,0.05812]
[1729379656212,0.04723779,68385.0,68384.0,0.05812]
[1729379656519,0.08758494,68385.0,68384.0,0.05812]
[1729379659119,0.08752541,68385.0,68384.0,0.05812]
[1729379664317,0.0407163,68385.0,68384.0,0.05812]
[1729379668813,0.0004,68385.0,68384.0,0.05812]
[1729379669027,0.0004,68385.0,68384.0,0.05612]
[1729379670012,0.07312,68384.0,68379.0,0.073124]
[1729379670219,0.04038234,68383.0,68379.0,0.073124]
[1729379670418,0.07312,68384.0,68379.0,0.073124]
[1729379670419,0.04024086,68382.0,68379.0,0.073124]
[1729379670619,0.07312,68384.0,68379.0,0.073124]
[1729379670815,0.04024012,68383.0,68375.0,0.1087098]
[1729379671030,0.04044012,68382.0,68380.0,0.073124]
[1729379671224,0.0002,68382.0,68380.0,0.073124]
[1729379672618,0.0002,68382.0,68381.0,0.073123]
[1729379674927,0.04041909,68382.0,68381.0,0.073123]
[1729379675235,0.0002,68382.0,68381.0,0.073123]
[1729379676630,0.0002,68382.0,68381.0,0.29244988]
[1729379679331,0.04055124,68382.0,68381.0,0.29244988]
[1729379680633,0.04046423,68382.0,68381.0,0.073123]
[1729379682835,0.11358623,68382.0,68381.0,0.073123]
[1729379684345,0.11358623,68382.0,68381.0,0.065123]
[1729379686249,0.073322,68382.0,68381.0,0.065123]
[1729379691547,0.0002,68382.0,68381.0,0.065123]
[1729379694150,0.04050029,68382.0,68381.0,0.065123]
[1729379694550,0.0002,68382.0,68381.0,0.065123]
[1729379696959,0.04049395,68382.0,68381.0,0.065123]
[1729379697341,0.0002,68382.0,68381.0,0.065123]
[1729379699751,0.04052084,68382.0,68381.0,0.065123]
[1729379699951,0.07122084,68382.0,68381.0,0.065123]
[1729379700357,0.07120375,68382.0,68381.0,0.065123]
[1729379700858,0.07120375,68382.0,68381.0,0.058123]
[1729379700859,0.0309,68382.0,68381.0,0.058123]
[1729379701243,0.11793391,68382.0,68381.0,0.058123]
[1729379705446,0.07117338,68382.0,68381.0,0.058123]
[1729379706143,0.11793354,68382.0,68381.0,0.058123]
[1729379706839,0.11793354,68382.0,68375.0,0.0589315]
[1729379707040,0.11793354,68382.0,68370.0,0.00219385]
[1729379707041,0.7216,68380.0,68370.0,0.00219385]
[1729379707245,0.433934,68371.0,68370.0,0.00219385]
[1729379707449,0.47420738,68371.0,68370.0,0.00219385]
[1729379707856,0.47420738,68371.0,68370.0,0.07532885]
[1729379708058,0.04027338,68371.0,68370.0,0.07532885]
[1729379708248,0.106329,68376.0,68370.0,0.07532885]
[1729379708451,0.106329,68376.0,68375.0,0.0002]
[1729379710049,0.073129,68376.0,68375.0,0.0002]
[1729379710656,0.162969,68376.0,68375.0,0.0002]
[1729379711447,0.09004,68377.0,68375.0,0.0002]
[1729379711651,0.09004,68377.0,68376.0,0.0002]
[1729379712754,0.163167,68377.0,68376.0,0.0002]
[1729379716358,0.20297864,68377.0,68376.0,0.0002]
[1729379723354,0.163167,68377.0,68376.0,0.0002]
[1729379723555,0.202998,68377.0,68376.0,0.0002]
[1729379723759,0.163167,68377.0,68376.0,0.0002]
[1729379725364,0.20293947,68377.0,68376.0,0.0002]
[1729379726469,0.163167,68377.0,68376.0,0.0002]
[1729379726973,0.20296386,68377.0,68376.0,0.0002]
[1729379728861,0.20298426,68377.0,68376.0,0.0002]
[1729379731464,0.24918605,68377.0,68376.0,0.0002]
[1729379734077,0.24915168,68377.0,68376.0,0.0002]
[1729379738576,0.20295544,68377.0,68376.0,0.0002]
[1729379743770,0.2030026,68377.0,68376.0,0.0002]
[1729379746783,0.5638026,68377.0,68376.0,0.0002]
[1729379747175,0.60960896,68377.0,68376.0,0.0002]
[1729379748486,0.60908484,68377.0,68376.0,0.0002]
[1729379748984,0.53595784,68377.0,68361.0,0.09956969]
[1729379749191,0.073145,68361.0,68354.0,0.073151]
[1729379749501,0.3608,68358.0,68354.0,0.073151]
[1729379750990,0.3608,68358.0,68353.0,0.02622543]
[1729379750991,0.073152,68354.0,68350.0,0.3608]
[1729379751290,0.073152,68354.0,68350.0,0.38703861]
[1729379751984,0.073152,68354.0,68350.0,0.3608]
[1729379752691,0.073152,68354.0,68350.0,0.433956]
[1729379753690,0.073155,68352.0,68351.0,0.073155]
[1729379755190,0.09004,68357.0,68350.0,0.3608]
[1729379755388,0.09024,68357.0,68356.0,0.07335]
[1729379757190,0.0004,68357.0,68356.0,0.07335]
[1729379757580,0.073138,68367.0,68360.0,0.073145]
[1729379757787,0.073138,68367.0,68360.0,0.073345]
[1729379757992,0.073138,68367.0,68360.0,0.29307276]
[1729379760290,0.073138,68367.0,68360.0,0.31996791]
[1729379760695,0.073138,68367.0,68360.0,0.29307276]
[1729379761105,0.073138,68367.0,68360.0,0.28507276]
[1729379764102,0.433939,68366.0,68360.0,0.28507276]
[1729379764297,0.073139,68366.0,68360.0,0.28507276]
[1729379764512,0.07314,68365.0,68360.0,0.28507276]
[1729379765090,0.073141,68364.0,68360.0,0.28507276]
[1729379767404,0.3608,68366.0,68360.0,0.21992776]
[1729379767605,0.073344,68361.0,68360.0,0.0002]
[1729379775414,0.11246408,68361.0,68360.0,0.0002]
[1729379776613,0.073344,68361.0,68357.0,0.09184742]
[1729379785422,0.073344,68361.0,68357.0,0.13565722]
[1729379790626,0.073344,68361.0,68358.0,0.0438098]
[1729379790827,0.073344,68361.0,68357.0,0.13565722]
[1729379791622,0.073344,68361.0,68357.0,0.09184742]
[1729379791824,0.073344,68361.0,68357.0,0.08384742]
[1729379794920,0.0002,68361.0,68357.0,0.01069942]
[1729379795215,0.0004,68365.0,68360.0,0.0438098]
[1729379795418,0.0004,68365.0,68364.0,0.073141]
[1729379795625,0.0004,68365.0,68364.0,0.073341]
[1729379795816,0.0004,68365.0,68364.0,0.29281939]
[1729379799121,0.0004,68365.0,68364.0,0.073341]
[1729379807131,0.0004,68365.0,68364.0,0.065341]
[1729379813133,0.0004,68365.0,68364.0,0.28532053]
[1729379821347,0.0004,68365.0,68364.0,0.36156736]
[1729379821642,0.0004,68365.0,68364.0,0.31772053]
[1729379821841,0.0002,68377.0,68374.0,0.07313]
[1729379822147,0.0002,68377.0,68374.0,0.29388447]
[1729379822351,0.3608,68384.0,68374.0,0.89388447]
[1729379822537,0.3608,68384.0,68381.0,0.073323]
[1729379822950,0.3608,68384.0,68381.0,0.29330065]
[1729379826751,0.3608,68384.0,68381.0,0.31954415]
[1729379828044,0.23391125,68418.0,68384.0,0.073119]
[1729379828045,0.3608,68400.0,68384.0,0.073119]
[1729379828352,0.3608,68400.0,68391.0,0.3608]
[1729379828549,0.3608,68400.0,68397.0,0.073106]
[1729379831154,0.0333,68403.0,68397.0,0.073106]
[1729379836361,0.36299354,68398.0,68392.0,0.073111]
[1729379836563,0.073106,68397.0,68392.0,0.073111]
[1729379836766,0.073106,68397.0,68393.0,0.21857139]
[1729379836767,0.106306,68397.0,68393.0,0.21857139]
[1729379837961,0.106306,68397.0,68393.0,0.28368039]
[1729379839361,0.3608,68396.0,68393.0,0.28368039]
[1729379839582,0.073109,68394.0,68384.0,0.36268]
[1729379839770,0.0002,68392.0,68384.0,0.3608]
[1729379839967,0.0002,68392.0,68385.0,0.22006887]
[1729379840567,0.0002,68392.0,68390.0,0.073113]
[1729379840760,0.0002,68392.0,68391.0,0.073112]
[1729379843965,0.0308,68392.0,68391.0,0.073112]
[1729379846862,0.0308,68392.0,68391.0,0.09907092]
[1729379848666,0.0308,68392.0,68391.0,0.073112]
[1729379853263,0.0308,68392.0,68391.0,0.065112]
[1729379858779,0.07185356,68392.0,68391.0,0.065112]
[1729379859869,0.07186398,68392.0,68391.0,0.065112]
[1729379861173,0.48028962,68392.0,68391.0,0.065112]
[1729379861970,0.11948962,68392.0,68391.0,0.065112]
[1729379862177,0.07186398,68392.0,68391.0,0.065112]
[1729379862480,0.11954374,68392.0,68391.0,0.065112]
[1729379862672,0.07186398,68392.0,68391.0,0.065112]
[1729379862868,0.1195403,68392.0,68391.0,0.065112]
[1729379863579,0.11953959,68392.0,68391.0,0.065112]
[1729379866681,0.07186398,68392.0,68391.0,0.065112]
[1729379868685,0.07186398,68392.0,68391.0,0.057112]
[1729379869594,0.07184872,68392.0,68391.0,0.057112]
[1729379870276,0.0308,68392.0,68391.0,0.057112]
[1729379870481,0.07184347,68392.0,68391.0,0.057112]
[1729379871470,0.0308,68392.0,68391.0,0.057112]
[1729379877879,0.07192246,68392.0,68391.0,0.057112]
[1729379879388,0.04132246,68392.0,68391.0,0.27714814]
[1729379880574,0.0002,68392.0,68391.0,0.27714814]
[1729379883370,0.0002,68392.0,68391.0,0.63794814]
[1729379883983,0.0002,68392.0,68391.0,0.62994814]
[1729379885979,0.0002,68392.0,68391.0,0.26914814]
[1729379889377,0.04127216,68392.0,68391.0,0.26914814]
[1729379889576,0.04128644,68392.0,68391.0,0.26914814]
[1729379890682,0.04128644,68392.0,68391.0,0.049112]
[1729379892979,0.08887881,68392.0,68391.0,0.049112]
[1729379897489,0.0002,68392.0,68391.0,0.049112]
[1729379899486,0.0002,68392.0,68391.0,0.042112]
[1729379902697,0.0002,68392.0,68391.0,0.62232227]
[1729379902892,0.0002,68392.0,68391.0,0.042112]
[1729379903294,0.04118791,68392.0,68391.0,0.042112]
[1729379904093,0.0002,68392.0,68391.0,0.042112]
[1729379905004,0.04118625,68392.0,68391.0,0.042112]
[1729379908896,0.04115916,68392.0,68391.0,0.042112]
[1729379912909,0.073114,68389.0,68388.0,0.02633823]
[1729379913112,0.04115916,68392.0,68378.0,0.3608]
[1729379913113,0.08821813,68391.0,68378.0,0.3608]
[1729379913309,0.073122,68382.0,68381.0,0.02715708]
[1729379913510,0.073122,68382.0,68381.0,0.0002]
[1729379913705,0.11361192,68382.0,68381.0,0.0002]
[1729379918518,0.11346126,68382.0,68381.0,0.0002]
[1729379919815,0.073122,68382.0,68381.0,0.0002]
[1729379920612,0.11330532,68382.0,68381.0,0.0002]
[1729379921112,0.71330532,68382.0,68381.0,0.0002]
[1729379921306,0.073129,68375.0,68374.0,0.0002]
[1729379921613,0.20267748,68375.0,68374.0,0.0002]
[1729379921910,0.80267748,68375.0,68374.0,0.0002]
[1729379922104,0.762889,68375.0,68374.0,0.0002]
[1729379924217,1.201649,68375.0,68374.0,0.0002]
[1729379924609,1.562449,68375.0,68374.0,0.0002]
[1729379926307,1.58927612,68375.0,68374.0,0.0002]
[1729379928125,1.15051612,68375.0,68374.0,0.0002]
[1729379929633,0.55051612,68375.0,68374.0,0.0002]
[1729379929825,0.18971612,68375.0,68374.0,0.0002]
[1729379930030,0.55051612,68375.0,68369.0,0.06752871]
[1729379930331,0.55051612,68375.0,68365.0,0.07314]
[1729379930522,0.0002,68372.0,68368.0,0.073136]
[1729379931715,0.0002,68372.0,68363.0,0.073142]
[1729379931716,0.3608,68369.0,68363.0,0.073142]
[1729379931918,0.073138,68367.0,68363.0,0.073142]
[1729379933018,0.073138,68367.0,68357.0,0.3608]
[1729379933227,0.0002,68364.0,68358.0,0.073147]
[1729379933418,0.0002,68364.0,68363.0,0.073142]
[1729379943037,0.0002,68364.0,68363.0,0.65198413]
[1729379951536,0.03988319,68364.0,68363.0,0.65198413]
[1729379953737,0.03988786,68364.0,68363.0,0.65198413]
[1729379957447,0.0002,68364.0,68363.0,0.65198413]
[1729379964646,0.03990743,68364.0,68363.0,0.65198413]
[1729379968448,0.03993689,68364.0,68363.0,0.65198413]
[1729379968650,0.03995317,68364.0,68363.0,0.65198413]
[1729379971155,0.03993571,68364.0,68363.0,0.65198413]
[1729379972443,0.0002,68364.0,68363.0,0.69588599]
[1729379973556,0.0002,68364.0,68363.0,0.65198413]
[1729379975263,0.08976,68377.0,68363.0,0.65198413]
[1729379975462,0.08976,68377.0,68371.0,0.073334]
[1729379975852,0.08976,68377.0,68371.0,0.29154186]
[1729379976252,0.08976,68377.0,68371.0,0.28354186]
[1729379977457,0.073126,68379.0,68371.0,0.28354186]
[1729379978660,0.073126,68378.0,68371.0,0.28354186]
[1729379979463,0.04008138,68372.0,68371.0,0.28354186]
[1729379982655,0.04008138,68372.0,68371.0,0.30955223]
[1729379983271,0.06685319,68372.0,68371.0,0.30955223]
[1729379986664,0.02697181,68372.0,68371.0,0.30955223]
[1729379991569,0.02697181,68372.0,68371.0,0.30155223]
[1729379993172,0.10010481,68372.0,68371.0,0.08334437]
[1729379993380,0.13988783,68372.0,68371.0,0.08334437]
[1729379994375,0.06675483,68372.0,68371.0,0.08334437]
[1729379994570,0.02697181,68372.0,68371.0,0.08334437]
[1729380001774,0.06693366,68372.0,68371.0,0.08334437]
[1729380004781,0.04016185,68372.0,68371.0,0.08334437]
[1729380006980,0.04016185,68372.0,68371.0,0.07534437]
[1729380009585,0.0002,68372.0,68371.0,0.29607305]
[1729380009783,0.033,68387.0,68380.0,0.073124]
[1729380010082,0.033,68387.0,68380.0,0.29405268]
[1729380011983,0.0002,68381.0,68380.0,0.29405268]
[1729380012282,0.361,68388.0,68387.0,0.073116]
[1729380012474,0.361,68388.0,68387.0,0.073316]
[1729380012784,0.361,68388.0,68387.0,0.29354826]
[1729380014872,0.0002,68395.0,68387.0,0.29354826]
[1729380015072,0.0002,68395.0,68394.0,0.073109]
[1729380015276,0.0002,68395.0,68394.0,0.073309]
[1729380016583,0.0002,68395.0,68394.0,0.29407092]
[1729380020481,0.0002,68395.0,68394.0,0.32006189]
[1729380020881,0.0002,68395.0,68394.0,0.29407092]
[1729380022277,0.0002,68395.0,68394.0,0.28607092]
[1729380033384,0.433903,68400.0,68395.0,0.073107]
[1729380033692,0.04102311,68399.0,68395.0,0.073107]
[1729380033892,0.433903,68400.0,68395.0,0.073107]
[1729380034193,0.0410125,68399.0,68395.0,0.073107]
[1729380034390,0.04102117,68398.0,68395.0,0.073107]
[1729380034588,0.433903,68400.0,68396.0,0.073107]
[1729380034889,0.04102346,68399.0,68396.0,0.073107]
[1729380035088,0.04102346,68398.0,68396.0,0.073107]
[1729380035396,0.433903,68400.0,68396.0,0.073107]
[1729380035397,0.04102751,68397.0,68396.0,0.073107]
[1729380037695,0.04102751,68397.0,68396.0,0.065107]
[1729380039390,0.08875796,68399.0,68396.0,0.065107]
[1729380039582,0.08875796,68399.0,68398.0,0.073305]
[1729380039785,0.04102751,68399.0,68398.0,0.073305]
[1729380049402,0.04102751,68399.0,68398.0,0.29392349]
[1729380052996,0.04102751,68399.0,68398.0,0.28592349]
[1729380054906,0.04134824,68399.0,68398.0,0.29392349]
[1729380055208,0.0317,68406.0,68403.0,0.073099]
[1729380055410,0.04153548,68405.0,68403.0,0.073099]
[1729380055707,0.04153548,68404.0,68403.0,0.073099]
[1729380058898,0.04153548,68404.0,68403.0,0.09950054]
[1729380060815,0.0415164,68404.0,68403.0,0.09950054]
[1729380061106,0.0415164,68404.0,68403.0,0.31964238]
[1729380061910,0.08972,68415.0,68403.0,0.31964238]
[1729380061911,0.3608,68423.0,68422.0,0.073079]
[1729380062114,0.3608,68423.0,68422.0,0.073279]
[1729380062305,0.3608,68423.0,68422.0,0.0002]
[1729380063308,0.3608,68423.0,68422.0,0.073279]
[1729380064736,0.07306,68440.0,68422.0,0.65213721]
[1729380064934,0.3608,68446.0,68434.0,0.0002]
[1729380064935,0.0622,68439.0,68434.0,0.0002]
[1729380067044,0.02692998,68441.0,68434.0,0.0002]
[1729380067236,0.3608,68446.0,68445.0,0.073055]
[1729380067428,0.3608,68446.0,68445.0,0.073255]
[1729380068437,0.3608,68446.0,68445.0,0.065255]
[1729380072038,0.0326,68450.0,68445.0,0.0002]
[1729380072233,0.0326,68450.0,68449.0,0.0002]
[1729380073043,0.105649,68450.0,68449.0,0.0002]
[1729380078044,0.466449,68450.0,68449.0,0.0002]
[1729380081039,0.4664899,68450.0,68449.0,0.0002]
[1729380083844,0.073054,68446.0,68437.0,0.09186068]
[1729380084138,0.0002,68443.0,68437.0,0.09186068]
[1729380084345,0.0002,68443.0,68438.0,0.21885193]
[1729380084547,0.073058,68442.0,68438.0,0.21885193]
[1729380084747,0.063,68441.0,68438.0,0.21885193]
[1729380089154,0.07306,68440.0,68438.0,0.21885193]
[1729380092649,0.073061,68439.0,68438.0,0.21885193]
[1729380094266,0.11566366,68439.0,68438.0,0.21885193]
[1729380094562,0.11566431,68439.0,68438.0,0.21885193]
[1729380094954,0.0002,68443.0,68438.0,0.27915193]
[1729380095267,0.04265418,68442.0,68441.0,0.073059]
[1729380095656,0.04265418,68442.0,68441.0,0.29186621]
[1729380099265,0.04274809,68442.0,68441.0,0.28386621]
[1729380100068,0.0002,68443.0,68441.0,0.28386621]
[1729380100256,0.0002,68443.0,68442.0,0.0323]
[1729380100657,0.0002,68443.0,68442.0,0.25023804]
[1729380101867,0.0002,68443.0,68442.0,0.32329604]
[1729380102566,0.0002,68443.0,68442.0,0.25023804]
[1729380102766,0.073257,68443.0,68442.0,0.25023804]
[1729380103163,0.11591037,68443.0,68442.0,0.25023804]
[1729380104468,0.04285337,68443.0,68442.0,0.25023804]
[1729380106062,0.04285337,68443.0,68442.0,0.32329604]
[1729380108972,0.04281092,68443.0,68442.0,0.32329604]
[1729380114575,0.04281092,68443.0,68442.0,0.29119604]
[1729380114773,0.0429079,68443.0,68442.0,0.29119604]
[1729380115269,0.0002,68443.0,68442.0,0.29119604]
[1729380116862,0.0002,68443.0,68442.0,0.21813804]
[1729380117076,0.073257,68443.0,68442.0,0.0002]
[1729380117367,0.14626708,68443.0,68442.0,0.0002]
[1729380118365,0.14623218,68443.0,68442.0,0.0002]
[1729380120866,0.14623092,68443.0,68442.0,0.0002]
[1729380122475,0.14623092,68443.0,68442.0,0.073258]
[1729380122476,0.07317392,68443.0,68442.0,0.073258]
[1729380122676,0.04277392,68443.0,68442.0,0.29300306]
[1729380126576,0.0429925,68443.0,68442.0,0.29300306]
[1729380129768,0.0002,68443.0,68442.0,0.29300306]
[1729380129973,0.0002,68443.0,68442.0,0.28500306]
[1729380137680,0.073061,68440.0,68438.0,0.3608]
[1729380137880,0.3608,68439.0,68436.0,0.04375266]
[1729380138084,0.073065,68435.0,68434.0,0.0002]
[1729380138281,0.11530817,68435.0,68434.0,0.0002]
[1729380138482,0.073065,68435.0,68434.0,0.0002]
[1729380141691,0.073065,68435.0,68434.0,0.073266]
[1729380142094,0.073065,68435.0,68434.0,0.0002]
[1729380143798,0.073065,68435.0,68434.0,0.073266]
[1729380145388,0.073065,68435.0,68434.0,0.065266]
[1729380147501,0.07306,68440.0,68431.0,0.00219206]
[1729380147694,0.07306,68440.0,68438.0,0.073061]
[1729380147695,0.04218449,68439.0,68438.0,0.073061]
[1729380148091,0.11524549,68439.0,68438.0,0.073061]
[1729380149294,0.04218449,68439.0,68438.0,0.073061]
[1729380150192,0.04230257,68440.0,68438.0,0.073061]
[1729380150393,0.04230257,68439.0,68438.0,0.073061]
[1729380150699,0.04233502,68440.0,68439.0,0.073061]
[1729380150900,0.04233502,68440.0,68439.0,0.073261]
[1729380152302,0.09152,68441.0,68439.0,0.073261]
[1729380152698,0.09152,68441.0,68440.0,0.0002]
[1729380157903,0.09152,68441.0,68440.0,0.07326]
[1729380160293,0.13378968,68441.0,68440.0,0.07326]
[1729380160700,0.13378968,68441.0,68440.0,0.06526]
[1729380162605,0.18285735,68441.0,68440.0,0.06526]
[1729380164312,0.09153735,68441.0,68440.0,0.06526]
[1729380164606,0.13378968,68441.0,68440.0,0.06526]
[1729380166503,0.1828958,68441.0,68440.0,0.06526]
[1729380166811,0.13378968,68441.0,68440.0,0.06526]
[1729380167000,0.18289014,68441.0,68440.0,0.06526]
[1729380167197,0.13378968,68441.0,68440.0,0.06526]
[1729380169400,0.09152,68441.0,68440.0,0.06526]
[1729380169707,0.13383358,68441.0,68440.0,0.06526]
[1729380174307,0.13390002,68441.0,68440.0,0.06526]
[1729380176010,0.13390002,68441.0,68440.0,0.05826]
[1729380176206,0.04258002,68441.0,68440.0,0.05826]
[1729380176413,0.13390002,68441.0,68440.0,0.05826]
[1729380179115,0.13380722,68441.0,68440.0,0.05826]
[1729380179911,0.13316722,68441.0,68440.0,0.05826]
[1729380180117,0.13316722,68441.0,68439.0,0.0002]
[1729380180310,0.11534722,68440.0,68439.0,0.0002]
[1729380180721,0.04228722,68440.0,68439.0,0.0002]
[1729380182414,0.09145487,68440.0,68439.0,0.0002]
[1729380187114,0.16451487,68440.0,68439.0,0.0002]
[1729380188622,0.25519487,68440.0,68439.0,0.0002]
[1729380190428,0.20602722,68440.0,68439.0,0.0002]
[1729380197334,0.25516586,68440.0,68439.0,0.0002]
[1729380201555,0.25516711,68440.0,68439.0,0.0002]
[1729380203347,0.16448711,68440.0,68439.0,0.0002]
[1729380203539,0.09142711,68440.0,68439.0,0.0002]
[1729380203743,0.09142711,68440.0,68439.0,0.073261]
[1729380203938,0.09162101,68440.0,68439.0,0.073261]
[1729380204136,0.04230686,68440.0,68439.0,0.073261]
[1729380206254,0.04250929,68440.0,68439.0,0.073261]
[1729380206545,0.0002,68441.0,68439.0,0.073261]
[1729380206753,0.0002,68441.0,68440.0,0.0002]
[1729380206951,0.04270593,68441.0,68440.0,0.07326]
[1729380208543,0.0002,68441.0,68440.0,0.07326]
[1729380209752,0.0002,68441.0,68440.0,0.0002]
[1729380212343,0.04269667,68441.0,68440.0,0.0002]
[1729380214949,0.11575567,68441.0,68440.0,0.0002]
[1729380215347,0.16484084,68441.0,68440.0,0.0002]
[1729380215664,0.22524084,68441.0,68440.0,0.0002]
[1729380215865,0.133659,68441.0,68440.0,0.0002]
[1729380216058,0.22495234,68441.0,68440.0,0.0002]
[1729380217760,0.58575234,68441.0,68440.0,0.0002]
[1729380220356,0.53670396,68441.0,68440.0,0.0002]
[1729380220863,0.50630396,68441.0,68440.0,0.0002]
[1729380221661,0.59670396,68441.0,68440.0,0.0002]
[1729380222455,0.23590396,68441.0,68440.0,0.0002]
[1729380224157,0.14550396,68441.0,68440.0,0.0002]
[1729380224363,0.11550396,68441.0,68440.0,0.0002]
[1729380227068,0.04244496,68441.0,68440.0,0.0002]
[1729380227462,0.04244496,68441.0,68440.0,0.07326]
[1729380227867,0.0427156,68441.0,68440.0,0.07326]
[1729380228566,0.0002,68441.0,68440.0,0.07326]
[1729380233568,0.0002,68441.0,68440.0,0.1001768]
[1729380235572,0.04267994,68441.0,68440.0,0.1001768]
[1729380237670,0.04267994,68441.0,68440.0,0.0921768]
[1729380242565,0.0002,68441.0,68440.0,0.0921768]
[1729380250768,0.04280461,68441.0,68440.0,0.0921768]
[1729380252768,0.04280461,68441.0,68440.0,0.0841768]
[1729380253173,0.0002,68441.0,68440.0,0.0841768]
[1729380253374,0.04279927,68441.0,68440.0,0.0841768]
[1729380257763,0.0002,68441.0,68440.0,0.0841768]
[1729380258376,0.031,68442.0,68440.0,0.0841768]
[1729380258572,0.031,68442.0,68441.0,0.073259]
[1729380259677,0.031,68442.0,68441.0,0.29384034]